Cogmind - Beta 11 @@@ ROGUE MODE // 2022.03.29 @ 12:44:47 Player: Sn@43 Result: Destroyed by S-10 Pest with Light Assault Rifle Performance ------------- Evolutions (1) 500 Regions Visited (4) 800 Robots Destroyed (63) 315 Value Destroyed (1512) 1512 Prototype IDs (1) 20 Alien Tech Used (0) 0 Bonus (56) 56 TOTAL SCORE: 3203 Bonus ------- Follower Combat Kills 68 Friendly Fire -12 Cogmind --------- Core Integrity 0/400 Matter 280/300 Energy 149/265 System Corruption 5% Temperature Cool (0) Movement Rolling (120) Ox2 Location -9/Mines Parts ------- > --- POWER (1) -------- Improved Ion Engine > --- PROPULSION (2) --- Armored Wheel Armored Wheel > --- UTILITY (4) ------ High-capacity Storage Unit Visual Processing Unit Improved Propulsion Shielding > --- WEAPON (2) ------- Shotgun Shock Bomb Launcher > --- INVENTORY (20) --- Improved Ion Engine Improved Ion Engine Wheel Armored Wheel High-capacity Storage Unit Experimental Sensor Array Signal Interpreter Improved Propulsion Shielding Hardened Light Armor Plating Heavy Assault Rifle Shotgun Slug Cannon Heavy Hammer Peak State ------------ > --- POWER ------------ Ion Engine > --- PROPULSION ------- Armored Wheel Armored Wheel > --- UTILITY ---------- High-capacity Storage Unit Experimental Sensor Array Hardened Light Armor Plating Tractor Beam > --- WEAPON ----------- Light Assault Rifle Improved Light Cannon > --- INVENTORY -------- Ion Engine Wheel Wheel Armored Wheel Armored Wheel Cargo Storage Unit Hardened Light Armor Plating Light Assault Rifle Light Assault Rifle Slug Cannon Grenade Launcher Flail [Rating: 23] Favorites ----------- Power Improved Ion Engine Engine Improved Ion Engine Propulsion Armored Wheel Wheel Armored Wheel Utility High-capacity Storage Unit Device Tractor Beam Storage High-capacity Storage Unit Processor Visual Processing Unit Hackware Hacking Suite Protection Improved Propulsion Shielding Weapon Heavy Assault Rifle Ballistic Gun Heavy Assault Rifle Ballistic Cannon Improved Light Cannon Launcher Grenade Launcher Impact Weapon Heavy Hammer Build | -11 -10 -10 -9 -9 ------- Run | Scr Mat Min Mat Min Slots Evolved 2 | . . . 2 . Power . | . . . . . Propulsion . | . . . . . Utility 2 | . . . 2 . Weapon . | . . . . . Parts Attached 69 | 9 12 10 37 1 Power 10 | 2 2 1 5 . Engine 10 | 2 2 1 5 . Core . | . . . . . Reactor . | . . . . . Propulsion 8 | 2 3 . 3 . Treads . | . . . . . Leg . | . . . . . Wheel 8 | 2 3 . 3 . Hover . | . . . . . Flight . | . . . . . Utility 27 | 3 3 5 16 . Device 5 | 1 2 1 1 . Storage 7 | 2 1 1 3 . Processor 1 | . . . 1 . Hackware 1 | . . . 1 . Protection 13 | . . 3 10 . Artifact . | . . . . . Weapon 24 | 2 4 4 13 1 Energy Gun . | . . . . . Energy Cannon . | . . . . . Ballistic Gun 18 | 2 3 2 11 . Ballistic Cannon 1 | . 1 . . . Launcher 3 | . . 2 . 1 Special Weapon . | . . . . . Impact Weapon 2 | . . . 2 . Slashing Weapon . | . . . . . Piercing Weapon . | . . . . . Special Melee Weapon . | . . . . . Unidentified Prototypes 1 | . . . 1 . Parts Lost 4 | . . . 3 1 Power . | . . . . . Propulsion 1 | . . . 1 . Utility 3 | . . . 2 1 Weapon . | . . . . . Highest Loss Streak 2 | . . . 2 1 To Critical Strikes . | . . . . . Average Slot Usage (%) 99 | . 100 100 98 100 Engine 12 | . 14 14 11 11 Wheel 24 | . 28 28 21 22 Device 8 | . 14 9 5 . Storage 12 | . 14 14 11 11 Processor 2 | . . . 5 11 Hackware 2 | . . . 5 . Protection 9 | . . 4 16 22 Ballistic Gun 18 | . 22 13 17 22 Ballistic Cannon 5 | . 5 14 2 . Naked Turns . | . . . . . Heaviest Build 156 | 18 51 55 156 62 Greatest Support 32 | 32 32 24 24 24 Greatest Overweight (x) 6 | . 2 2 6 2 Average Overweight (x) 1 | . . 2 2 2 Largest Inventory Capacity 30 | 8 20 20 30 20 Average Capacity 18 | 7 14 20 20 20 Most Carried 16 | 5 13 15 16 13 Average Carried 11 | 3 9 13 12 13 Final Capacity 20 | 8 20 20 20 20 Final Carried 15 | 5 13 15 13 13 Class Distribution -------------------- 85% | Mutant 14% | Scavenger-Mutant Dominant Class ---------------- Mutant | -10/Materials Mutant | -10/Mines Mutant | -9/Materials Mutant | -9/Mines Resources | -11 -10 -10 -9 -9 ----------- Run | Scr Mat Min Mat Min Matter Collected 1828 | 292 184 170 1047 135 Remotely 986 | . 184 139 663 . Salvage Created 1809 | 110 309 160 1109 121 Parts 128 | 4 18 9 86 11 Haulers Intercepted . | . . . . . Recyclers Shooed . | . . . . . Parts Field Recycled . | . . . . . Retrieved Matter . | . . . . . Parts Self-Destructed . | . . . . . Prevented . | . . . . . Kills | -11 -10 -10 -9 -9 ------- Run | Scr Mat Min Mat Min Combat Hostiles Destroyed 47 | . 8 6 28 5 Guns 36 | . 8 2 21 5 Cannons 4 | . . . 4 . AOE 4 | . . 4 . . Classes Destroyed 9 | 2 3 1 3 . Worker 5 | . . 1 4 . Tunneler 3 | 1 . . . 2 Recycler 1 | 1 . . . . Operator 1 | . . . 1 . Watcher 6 | . 1 . 5 . Swarmer 19 | . 3 . 11 5 Grunt 18 | . 5 6 7 . Brawler 1 | . . . 1 . Sentry 9 | . . . 9 . Best Kill Streak 8 | 2 2 2 8 4 Combat Bots Only 4 | . 2 2 4 4 Max Kills in Single Turn 2 | 1 1 1 1 2 Gunslinging 1 | . . . . 1 Exploded 1 | . . 1 . . Melee . | . . . . . Uniques/NPCs Destroyed . | . . . . . Combat | -11 -10 -10 -9 -9 -------- Run | Scr Mat Min Mat Min Damage Taken 2411 | . 469 292 1434 216 Core 621 | . 171 50 375 25 Absorbed by Shields . | . . . . . Redirected to Shielding 150 | . . . 123 27 Regen/Repaired (Parts) 155 | . . . 155 . Core Remaining (%) 55 | 100 . 11 . . Volleys Fired 169 | 4 43 23 88 11 Largest 2 | 2 2 2 2 2 Hottest 62 | 40 59 59 62 46 Shots Fired 325 | 8 86 36 176 19 Gun 281 | 8 84 14 159 16 Cannon 32 | . 2 13 17 . Launcher 12 | . . 9 . 3 Special . | . . . . . Kinetic 313 | 8 86 27 176 16 Thermal . | . . . . . Explosive 9 | . . 9 . . Electromagnetic 3 | . . . . 3 Robot Hit Streak 14 | 4 14 7 10 3 Robot Miss Streak 4 | 1 3 2 4 3 Penetration Max . | . . . . . Secondary Targets 3 | . . . 2 1 Max Gunslinging Chain 1 | . . . 1 1 Shots Hit Robots 207 | 5 56 20 117 9 Core Hits 97 | 2 21 18 47 9 Critical Kills . | . . . . . Critical Parts Destroyed 2 | . . . 2 . Critical Strikes 2 | . . . 2 . Smash 2 | . . . 2 . Melee Attacks 16 | . . . 16 . Impact 16 | . . . 16 . Slashing . | . . . . . Piercing . | . . . . . Sneak Attacks 1 | . . . 1 . Combat Hostiles . | . . . . . Follow-up Attacks . | . . . . . Damage Inflicted 3417 | 56 493 585 2127 156 Guns 2332 | 56 468 72 1586 150 Cannons 407 | . 25 149 233 . Explosions 370 | . . 364 . 6 Melee 308 | . . . 308 . Ramming . | . . . . . Kinetic 2739 | 56 493 221 1819 150 Thermal . | . . . . . Explosive 364 | . . 364 . . Electromagnetic 6 | . . . . 6 Impact 308 | . . . 308 . Slashing . | . . . . . Piercing . | . . . . . Highest Corruption 5 | . 2 2 5 5 Average Corruption 2 | . 2 2 3 5 Corruption Purged . | . . . . . Corruption Blocked . | . . . . . Effects 34 | . 5 10 13 6 Message Errors 8 | . . 2 5 1 Matter Fused 11 | . 2 4 3 2 Heat Flow Errors 5 | . . 1 3 1 Energy Discharges 2 | . 1 1 . . Data Loss (minor) 6 | . 2 1 2 1 Data Loss (major) 1 | . . . . 1 Weapon Failures 1 | . . 1 . . Overload Shots . | . . . . . Overflow Damage 206 | . 5 . 201 . Projectiles 5 | . 5 . . . Explosions . | . . . . . Melee 201 | . . . 201 . Knockbacks 2 | . 1 . 1 . Impact 1 | . . . 1 . Kinetic 1 | . 1 . . . Secondary . | . . . . . Self-Inflicted Damage 89 | . 73 16 . . Shots 2 | . 1 1 . . Rammed . | . . . . . Targets Rammed . | . . . . . Kicked . | . . . . . Crushed . | . . . . . Highest Temperature 216 | . 38 200 216 124 Average Temperature 38 | . 16 65 30 67 Received Heat Transfer 927 | . 198 201 528 . Siege Activations . | . . . . . Robots Corrupted . | . . . . . Combat Hostiles . | . . . . . Parts Fried 2 | . . . 2 . Impact Corruptions 8 | . . . 8 . Robots Melted . | . . . . . Combat Hostiles . | . . . . . Parts Melted . | . . . . . Heat Transferred . | . . . . . Parts Sabotaged . | . . . . . Parts Stolen . | . . . . . Parts Stripped . | . . . . . Power Chain Reactions . | . . . . . Missiles Intercepted . | . . . . . Alert | -11 -10 -10 -9 -9 ------- Run | Scr Mat Min Mat Min Peak Influence 399 | 10 309 175 399 235 Initial 70 | . 6 1 . 70 Average 126 | 4 62 80 189 137 Maximum Alert Level 1 | . 1 . 1 1 Low Security (%) 78 | 100 92 100 58 77 Level 1 21 | . 7 . 41 22 Level 2 . | . . . . . Level 3 . | . . . . . Level 4 . | . . . . . Level 5 . | . . . . . High Security . | . . . . . Max Security . | . . . . . Squads Dispatched 5 | . 1 . 3 1 Investigation 3 | . . . 2 1 Extermination . | . . . . . Reinforcement 2 | . 1 . 1 . Assault . | . . . . . Garrison . | . . . . . Intercept . | . . . . . Searches Triggered . | . . . . . Construction Impeded . | . . . . . Haulers Reinforced . | . . . . . Active Scanning Responses . | . . . . . Cargo Convoy Interrupts . | . . . . . Stealth | -11 -10 -10 -9 -9 --------- Run | Scr Mat Min Mat Min Distress Signals 5 | . 1 . 4 . Communications Jammed . | . . . . . Distress Signals . | . . . . . Times Spotted 76 | . 22 6 38 10 Peak Tracking Total 4 | . 4 2 4 4 Tactical Retreats 5 | . 3 . 1 1 Traps | -11 -10 -10 -9 -9 ------- Run | Scr Mat Min Mat Min Traps Triggered 8 | . 1 . 7 . Indirectly . | . . . . . Trap Hack Attempts . | . . . . . Triggered . | . . . . . Disarmed . | . . . . . Reprogrammed . | . . . . . Reused . | . . . . . Traps Extracted . | . . . . . Installed . | . . . . . Triggered . | . . . . . Machines | -11 -10 -10 -9 -9 ---------- Run | Scr Mat Min Mat Min Machines Disabled 6 | . 1 2 2 1 Max in Single Turn 1 | . 1 1 1 1 Machines Sabotaged . | . . . . . Garrisons Compromised . | . . . . . Overloaded Fab Kills . | . . . . . Hacking | -11 -10 -10 -9 -9 --------- Run | Scr Mat Min Mat Min Machines Accessed 21 | . 8 . 12 1 Terminals 18 | . 8 . 10 . Fabricators . | . . . . . Repair Stations 1 | . . . 1 . Recycling Units . | . . . . . Scanalyzers 1 | . . . 1 . Garrison Access . | . . . . . Total Hacks 61 | . 22 . 38 1 Successful 35 | . 13 . 21 1 Failed 26 | . 9 . 17 . Catastrophic 6 | . 3 . 3 . Database Lockouts . | . . . . . Manual 51 | . 23 . 28 . Terminals 50 | . 22 . 28 . Fabricators . | . . . . . Repair Stations 4 | . . . 4 . Recycling Units . | . . . . . Scanalyzers 6 | . . . 6 . Garrison Access . | . . . . . Terminal Hacks 10 | . 7 . 2 1 Robot Analysis 4 | . 4 . . . Open Door 1 | . . . . 1 Unreport Threat 5 | . 3 . 2 . Fabricator Hacks . | . . . . . Repair Station Hacks 4 | . . . 4 . Scan Component 2 | . . . 2 . Repair 2 | . . . 2 . Recycling Unit Hacks . | . . . . . Scanalyzer 5 | . . . 5 . Insert Component 2 | . . . 2 . Analyze 3 | . . . 3 . Garrison Access Hacks . | . . . . . Unauthorized Hacks 16 | . 6 . 10 . Terminals 16 | . 6 . 10 . Botnet 16 | . 6 . 10 . Fabricators . | . . . . . Repair Stations . | . . . . . Recycling Units . | . . . . . Scanalyzers . | . . . . . Garrison Access . | . . . . . Data Cores Recovered 1 | . . . 1 . Used . | . . . . . Hacking Detections 16 | . 7 . 9 . Full Trace Events 2 | . . . 2 . Feedback Events . | . . . . . Feedback Blocked . | . . . . . Robot Schematics Acquired . | . . . . . Robots Built . | . . . . . Authchips . | . . . . . Time . | . . . . . Total Robot Build Rating . | . . . . . Part Schematics Acquired 2 | . . . 2 . Parts Built . | . . . . . Authchips . | . . . . . Time . | . . . . . Total Part Build Rating . | . . . . . Parts Repaired 2 | . . . 2 . Time 64 | . . . 64 . Parts Recycled . | . . . . . Recycled Matter . | . . . . . Retrieved Matter . | . . . . . Retrieved Components . | . . . . . Parts Scanalyzed 2 | . . . 2 . Part Schematics Acquired 2 | . . . 2 . Parts Damaged . | . . . . . Bothacking | -11 -10 -10 -9 -9 ------------ Run | Scr Mat Min Mat Min Used RIF Installer . | . . . . . Robots Hacked . | . . . . . Non-combat . | . . . . . Combat . | . . . . . Robot Hacks Applied . | . . . . . Relay Couplers Released . | . . . . . Fabnet Peak Effective % . | . . . . . Robots Rewired . | . . . . . Allies Hacked . | . . . . . Hacks Repelled . | . . . . . Allies | -11 -10 -10 -9 -9 -------- Run | Scr Mat Min Mat Min Total Allies 1 | . . 1 . . Largest Group 1 | . . 1 1 . Highest-Rated Group 31 | . . 31 31 . Highest-Rated Ally 31 | . . 31 31 . Total Orders . | . . . . . Ally Attacks 10 | . . . 10 . Total Damage 106 | . . . 106 . Kills 3 | . . . 3 . Allies Corrupted . | . . . . . Allies Melted . | . . . . . Intel | -11 -10 -10 -9 -9 ------- Run | Scr Mat Min Mat Min Robot Analysis Total 4 | . 4 . . . Derelict Logs Recovered 2 | . . 2 . . Drone Launches . | . . . . . Drone Recoveries . | . . . . . Exploration | -11 -10 -10 -9 -9 ------------- Run | Scr Mat Min Mat Min Turns Passed 4218 | 88 1169 829 1879 253 Spaces Moved 2839 | 62 855 592 1171 159 Core 6 | 6 . . . . Treads . | . . . . . Legs . | . . . . . Wheels 2833 | 56 855 592 1171 159 Hover . | . . . . . Flight . | . . . . . Fastest Speed 50 | 50 90 120 120 120 Average Speed 115 | 95 106 120 120 120 Slowest Speed 180 | 100 120 120 180 120 Overloaded Moves . | . . . . . Propulsion Burnouts . | . . . . . Robots Hopped . | . . . . . Cave-ins Triggered . | . . . . . Exploration Rate (%) 66 | 5 99 99 98 33 Regions Visited 4 Branch Regions 2 Pre-discovered Areas . | . . . . . Known Exits Taken . | . . . . . Unknown Exits Taken 4 | 1 1 1 1 . Scrap Searched 2 | . . 1 . 1 Spaces Dug 6 | . . . 6 . Terrain Destroyed 72 | . 25 41 6 . Melee 6 | . . . 6 . Projectile 1 | . . 1 . . AOE 65 | . 25 40 . . Terrain Rammed . | . . . . . Walls Destroyed . | . . . . . Machines Disabled . | . . . . . Actions | -11 -10 -10 -9 -9 --------- Run | Scr Mat Min Mat Min Total 3449 | 79 1049 675 1444 202 Wait 278 | . 110 43 94 31 Move 2835 | 61 854 591 1170 159 Hop . | . . . . . Pick Up 32 | 4 13 3 12 . Fast Attach 19 | 8 2 1 8 . Attach 18 | . 1 2 15 . Detach 9 | . . 2 7 . Swap 32 | 1 9 7 14 1 Drop 41 | 1 17 3 20 . Fire 169 | 4 43 23 88 11 Melee 16 | . . . 16 . Ram . | . . . . . Kick . | . . . . . Crush . | . . . . . Escape Stasis . | . . . . . Rewire . | . . . . . Trap . | . . . . . Miscellaneous . | . . . . . Route ------- -11/Scrapyard -10/Materials (discovered 4 exits: *Mat x3 / [*Min]) -10/Mines (discovered 3 exits: *Mat x2 / [*Exi]) -9/Materials (discovered 5 exits: [*Mat x3] / *Min x2) -9/Mines (discovered 2 exits: [*Mat x2]) History --------- Turn | Location | Event 37 | -11/Scrapyard | Discovered new exit (range 14) 89 | -11/Scrapyard | Entered Materials 186 | -10/Materials | Discovered new exit (range 14) 307 | -10/Materials | Build established: Mutant 403 | -10/Materials | Core integrity fell below 50% 757 | -10/Materials | Discovered new exit (range 15) 827 | -10/Materials | Discovered new exit (range 14) 1133 | -10/Materials | Discovered new exit (range 8) 1258 | -10/Materials | Entered Mines 1361 | -10/Mines | A weapon hastily lodged in a ceiling crevice suddenly fell to the ground 1404 | -10/Mines | Learned Materials emergency access door positions 1513 | -10/Mines | Discovered new exit (range 11) 1553 | -10/Mines | Deemed a non-threat by the Exiles lab entrance 1553 | -10/Mines | Discovered new exit (range 5) 1608 | -10/Mines | Core integrity fell below 20% 2014 | -10/Mines | Found a damaged Exp. Sensor Array with a note attached 2016 | -10/Mines | Found Prototype Device 2028 | -10/Mines | Discovered new exit (range 7) 2032 | -10/Mines | Received a Mining Laser from a helpful Derelict 2087 | -10/Mines | Entered Materials 2087 | -9/Materials | Accompanied by 1 ally 2087 | -9/Materials | Evolved 2 slots: Utility x2 2088 | -9/Materials | Identified Exp. Sensor Array 2447 | -9/Materials | Repaired Arm. Wheel 2481 | -9/Materials | Repaired Arm. Wheel 2635 | -9/Materials | Discovered new exit (range 5) 3052 | -9/Materials | Discovered new exit (range 7) 3114 | -9/Materials | Core integrity fell below 50% 3265 | -9/Materials | Discovered new exit (range 12) 3290 | -9/Materials | Discovered new exit (range 18) 3384 | -9/Materials | Core integrity fell below 20% 3401 | -9/Materials | Build established: Scavenger-Mutant 3582 | -9/Materials | Discovered new exit (range 12) 3966 | -9/Materials | Entered Mines 3971 | -9/Mines | Met a Derelict shopkeep closing up shop 3998 | -9/Mines | Discovered new exit (range 8) 4004 | -9/Mines | Build established: Mutant 4056 | -9/Mines | Discovered new exit (range 6) 4219 | -9/Mines | Destroyed by S-10 Pest with Light Assault Rifle Last Messages --------------- 04094_ Acquired 10 matter. 04097_ System corrupted: Matter fused (-9). 04098_ Acquired 19 matter. 04140_ Acquired 5 matter. 04154_ System corrupted: Substantial component data lost. 04163_ S-10 Pest destroyed. 04169_ Acquired 16 matter. 04176_ T-07 Excavator destroyed. 04182_ Acquired 12 matter. 04185_ T-07 Excavator destroyed. 04189_ Acquired 7 matter. 04199_ Searching scrap... 04199_ Found Flight Unit. 04199_ Found Hvy. EM Pulse Gun. 04199_ Found Particle Gun. 04199_ Found Grenade Launcher. 04199_ Found 17 Matter. 04205_ K-01 Serf collects debris. 04217_ Med. Armor Plating destroyed. 04219_ System corrupted: Component data lost. Map ----- +----------------------------------------------------+ | ?????########?????# ## ######?????####### | | ?????#""""""#?????## < #### #?????# | | ?????#!!!![!#??????# ##??###### #####?# | | ??????# #???????# ##????????# #?# | | ??????#= !###?????## ##?????????##### #?# < | | ?????### ## ##?????# ###??????????????# #?# | | ?????# X #?????# #????????????????# #?# """ | | ?????# ####### #????????????????# #?# """ | | ?????# ! #????????????????# ### """ | | ?????# ##### #####????????????????# | | ?????# ##???# #????????????????????# ### | | ?????# #????# #????????????????????# #?####### | | ?????# ##????# ################?????# #???????? | | ?????## ##?????# !%* =%= #?????# #???????? | | ??????####??????###### ######### #?????# #???????? | | ?????????????????????# #???????# #?????# #???????? | | ?????????????????????#[#???????# #?????# #???????? | | ?????????????????????#[#???????# #####?# #???????? | | ?????????????????????#%#???????# ### #???????? | | ?????????????????????#]#???????##### % #???????? | | ?????????????????????#=#???????????# #####???????? | | ?????????????????????# ##??????????#%#???????????? | | ????????????#??????### ##?????????# #???????????? | | ????????# ## ### ##????????#% ???????????? | | ???????# ##???????###???????????? | | ??????# @ #?????????????????????? | | ?????# #????????????????????? | | ?????? k $ ?????????????????? | | ?????? ### #???????????????? | | ??????? #### #??# ##### #???????????????? | | ??????? ????###??? #?????#???????????????? | | ??????? ??????????# #?????????????????????? | | ?????????????????????# #?????????????????????? | | ?????????????????????## #?????????????????????? | | ??????????????????????### ?????????????????????? | | ?????????????????????????# ?????????????????????? | | ?????????????????????????? ????????????????????? | | ?????????????????????????? ????????????????????? | | ?????????????????????????? ???????????????????? | | ?????????????????????????? s ???????????????????? | | ?????????????????????????? s ???????????????????? | | ?????????????????????????? s????????????????????? | | ?????????????????????????? ?????????????????????? | | ?????????????????????????????????????????????????? | | ?????????????????????????????????????????????????? | | ?????????????????????????????????????????????????? | | ?????????????????????????????????????????????????? | | ?????????????????????????????????????????????????? | | ?????????????????????????????????????????????????? | | ?????????????????????????????????????????????????? | +----------------------------------------------------+ Best States ------------- Heat Dissipation 28 Energy Generation 12 Energy Capacity 265 Matter Stores 300 Matter Capacity 500 Sight Range 18 Terrain Scan Range 16 Terrain Scan Density 10 Armor Coverage 300 Propulsion Shielding 66 Evasion (%) 42 Offensive Hacking 10 Item Schematics ----------------- Arm. Wheel | -9/Materials | Scanalyzed Exp. Sensor Array | -9/Materials | Scanalyzed Robot Schematics ------------------ None Fabricated ------------ Nothing Alien Tech Used ----------------- None Achievements -------------- Tank Challenges ------------ None Game ------ Seed TeslaScatterClaws Manual? 0 Play Time 00:40:49 Cumulative 45.5 hours Start 2022.03.29 @ 11:44:09 End 2022.03.29 @ 12:44:47 Sessions 1 Manual Loads 0 Difficulty Rogue Special Mode None Game No. 76 Rogue 48 Adventurer 28 Explorer 0 Win Type - Total 0 Types 0/0/0/0/0/0/0/0/0 Lore% 21 Gallery% 27 Achievement% 29 Wizard Run 0 Options --------- ASCII 0 Keyboard 0 Movement Mouse Keybinds 0 Fullscreen 1 Font 24/Terminus Map View 84x54 Tactical HUD 1 Map Filters NONE Filters NONE Steam 1 RUN: 32578379-8926-4219-b15e-4cb28b1d0a87